Cogmind - Beta 10.1 @@@ ROGUE MODE // 2021.06.18 @ 04:23:56 // Winter2019/RPGLIKE Player: Farfid Result: Destroyed by P-80 Master with Gamma Rifle Performance ------------- Evolutions (6) 3000 Regions Visited (27) 5400 Robots Destroyed (650) 3250 Value Destroyed (28295) 28295 Prototype IDs (75) 1500 Alien Tech Used (1) 200 Bonus (33205) 33205 TOTAL SCORE: 74850 Bonus ------- Triggered High Security 1000 High Alert Combat Kills 12026 Follower Combat Kills 5610 Met Data Miner 300 Met Imprinter 300 Destroyed Z-Imprinter 1000 Triggered Deep Caves Wall 500 Exposed GOLEM Chamber 500 Met Warlord at Base 500 MAIN.C Attacked Warlord 500 Warlord Defense Kill 11644 Friendly Fire -675 Cogmind --------- Core Integrity 0/1800 Matter 217/300 Energy 700/700 System Corruption 7% Temperature Cool (0) Movement Hovering (45) Location -4/Warlord Parts ------- > --- POWER (2) -------- Vortex Chain Reactor > --- PROPULSION (6) --- Combat Airjet Combat Airjet Cooled Gravmag System Combat Gravmag System Cooled Antigrav System Cooled Antigrav System > --- UTILITY (10) ----- Wardrone Bay (1/1) > --- WEAPON (5) ------- Wave Gun Assembled Focal Cannon Assembled Focal Cannon Improved Proton Missile Launcher > --- INVENTORY (5) ---- Protomatter-70 Protomatter-33 Zionite Metafield Generator Makeshift System Restoration Module Wave Gun Peak State ------------ > --- POWER ------------ Vortex Chain Reactor > --- PROPULSION ------- Combat Airjet Combat Airjet Cooled Gravmag System Combat Gravmag System Cooled Antigrav System Cooled Antigrav System > --- UTILITY ---------- Wardrone Bay > --- WEAPON ----------- Wave Gun Wave Gun Assembled Focal Cannon Assembled Focal Cannon Improved Proton Missile Launcher > --- INVENTORY -------- Protomatter Protomatter Zionite Metafield Generator Makeshift System Restoration Module Kinetic Spear [Rating: 228] Favorites ----------- Power Fusion Reactor Engine F-cell Engine Power Core Light Nuclear Core Reactor Fusion Reactor Propulsion Combat Airjet Wheel Compact Wheel Hover Unit Combat Airjet Utility Advanced Signal Interpreter Device Long-range Terrain Scanner Storage Zionite Biocell Processor Advanced Signal Interpreter Protection Assembled Alloy Armor Weapon Assembled Focal Cannon Energy Gun Wave Gun Energy Cannon Assembled Focal Cannon Launcher Improved Proton Missile Launcher Slashing Weapon Chainsword Build | -11 -10 -10 -9 -9 -9 -8 -8 -7 -7 -7 -7 -6 -6 -6 -6 -6 -6 -5 -5 -5 -5 -5 -4 -4 -4 -4 -4 ------- Run | Scr Mat Min Mat Min Exi Min Mat Fac Low Low Dat Pro Fac Low Low Zio Dee Pro Fac Upp Upp Zhi Pro Fac Upp Upp War Slots Evolved 19 | 3 . 1 2 3 . . 2 . 2 . . . 2 . . . . . 2 . . . 1 . . 1 . Power 1 | . . . . 1 . . . . . . . . . . . . . . . . . . . . . . . Propulsion 5 | 1 . . 1 . . . 1 . . . . . . . . . . . 1 . . . 1 . . . . Utility 9 | 1 . 1 1 1 . . 1 . 1 . . . 1 . . . . . 1 . . . . . . 1 . Weapon 4 | 1 . . . 1 . . . . 1 . . . 1 . . . . . . . . . . . . . . Parts Attached 191 | 6 4 2 9 4 1 . 19 13 4 1 . 9 13 3 3 2 20 13 30 1 1 4 . 13 1 2 13 Power 28 | 2 . . 1 2 . . 1 1 1 . . 1 3 . . . 3 2 6 . . 1 . 3 . . 1 Engine 8 | 2 . . . 1 . . . 1 . . . . 2 . . . . 1 1 . . . . . . . . Core 5 | . . . 1 1 . . 1 . 1 . . 1 . . . . . . . . . . . . . . . Reactor 15 | . . . . . . . . . . . . . 1 . . . 3 1 5 . . 1 . 3 . . 1 Propulsion 25 | 2 . 2 . . . . 3 1 . . . . 2 . . 2 3 1 4 . . . . 2 . 1 2 Treads . | . . . . . . . . . . . . . . . . . . . . . . . . . . . . Leg . | . . . . . . . . . . . . . . . . . . . . . . . . . . . . Wheel 2 | 2 . . . . . . . . . . . . . . . . . . . . . . . . . . . Hover 23 | . . 2 . . . . 3 1 . . . . 2 . . 2 3 1 4 . . . . 2 . 1 2 Flight . | . . . . . . . . . . . . . . . . . . . . . . . . . . . . Utility 78 | . 2 . 4 1 1 . 7 2 . 1 . 3 2 1 3 . 8 9 14 1 1 3 . 7 1 1 6 Device 50 | . . . 1 . . . 3 1 . . . . 1 1 2 . 4 9 13 1 . 3 . 5 . 1 5 Storage 5 | . . . . . 1 . 1 . . . . 1 . . . . 1 . 1 . . . . . . . . Processor 14 | . 2 . 2 1 . . 2 . . 1 . 1 . . . . . . . . 1 . . 2 1 . 1 Hackware . | . . . . . . . . . . . . . . . . . . . . . . . . . . . . Protection 9 | . . . 1 . . . 1 1 . . . 1 1 . 1 . 3 . . . . . . . . . . Artifact . | . . . . . . . . . . . . . . . . . . . . . . . . . . . . Weapon 60 | 2 2 . 4 1 . . 8 9 3 . . 5 6 2 . . 6 1 6 . . . . 1 . . 4 Energy Gun 31 | 2 . . 1 1 . . 7 2 . . . 4 2 1 . . 3 1 4 . . . . 1 . . 2 Energy Cannon 19 | . 2 . 3 . . . . 6 2 . . 1 3 1 . . 1 . . . . . . . . . . Ballistic Gun . | . . . . . . . . . . . . . . . . . . . . . . . . . . . . Ballistic Cannon . | . . . . . . . . . . . . . . . . . . . . . . . . . . . . Launcher 8 | . . . . . . . 1 . . . . . 1 . . . 2 . 2 . . . . . . . 2 Special Weapon . | . . . . . . . . . . . . . . . . . . . . . . . . . . . . Impact Weapon . | . . . . . . . . . . . . . . . . . . . . . . . . . . . . Slashing Weapon 2 | . . . . . . . . 1 1 . . . . . . . . . . . . . . . . . . Piercing Weapon . | . . . . . . . . . . . . . . . . . . . . . . . . . . . . Special Melee Weapon . | . . . . . . . . . . . . . . . . . . . . . . . . . . . . Unidentified Prototypes 36 | . . . 1 . . . 5 1 . . . 1 3 . . . 10 . 6 . . 1 . 2 . . 6 Parts Lost 2 | . . . . . . . 1 . . . . . 1 . . . . . . . . . . . . . . Power . | . . . . . . . . . . . . . . . . . . . . . . . . . . . . Propulsion 1 | . . . . . . . 1 . . . . . . . . . . . . . . . . . . . . Utility 1 | . . . . . . . . . . . . . 1 . . . . . . . . . . . . . . Weapon . | . . . . . . . . . . . . . . . . . . . . . . . . . . . . Highest Loss Streak 1 | . . . . . . . 1 . . . . . 1 . . . . . . . . . . . . . . Average Slot Usage (%) 90 | . 91 87 85 89 91 92 95 99 99 94 100 99 99 99 100 100 99 93 94 95 95 99 95 99 100 100 57 Engine 2 | . 14 12 . . 7 7 6 6 11 5 5 1 6 5 5 5 5 4 . . . . . . . . . Core 1 | . . . 10 8 7 7 6 6 1 5 5 9 . . . . . . . . . . . . . . . Reactor 4 | . . . . . . . . . . . . . 2 5 5 5 4 5 9 9 9 9 9 9 9 8 4 Hover 22 | . . 1 20 17 15 15 20 26 25 23 23 23 21 21 21 21 21 21 24 23 23 23 22 26 27 26 26 Device 14 | . . . . 8 7 7 9 13 12 11 11 11 15 14 20 21 23 21 19 19 19 20 22 18 18 20 6 Storage 3 | . . . . . 1 7 6 6 5 5 5 5 5 5 5 5 5 5 4 4 4 4 4 4 4 4 . Processor 11 | . 19 25 29 25 20 15 14 13 12 11 17 17 15 15 10 10 10 10 9 9 9 11 9 12 13 13 1 Protection 3 | . . . 3 8 7 7 7 6 5 5 5 5 5 5 5 5 2 . 1 4 4 4 4 4 4 4 . Energy Gun 8 | . 1 . . . 7 7 13 6 . . . 16 12 14 15 15 14 10 9 9 9 9 9 9 9 8 5 Energy Cannon 10 | . 26 25 20 17 15 15 6 12 20 23 23 6 9 10 10 10 8 9 9 9 9 9 9 9 9 8 8 Launcher 2 | . . . . . . . . . . . . . . . . . 1 5 4 4 4 4 4 4 4 4 3 Naked Turns . | . . . . . . . . . . . . . . . . . . . . . . . . . . . . Heaviest Build 128 | 7 11 11 17 31 35 35 38 50 51 51 51 51 76 80 79 79 79 83 109 104 104 104 99 99 90 95 128 Greatest Support 131 | 31 31 49 49 49 49 49 71 71 71 71 71 71 93 93 93 93 99 99 117 105 105 105 105 118 118 121 131 Greatest Overweight (x) 1 | . . . . . . . . . . . . . . . . . . . 1 . . . . . . . . Average Overweight (x) . | . . . . . . . . . . . . . . . . . . . . . . . . . . . . Largest Inventory Capacity 5 | 1 1 1 2 2 2 2 3 3 4 4 4 4 5 5 5 5 5 5 5 5 5 5 5 5 5 5 5 Average Capacity 4 | . 1 1 1 2 2 2 2 3 3 4 4 4 4 5 5 5 5 5 5 5 5 5 5 5 5 5 5 Most Carried 5 | 1 1 1 2 2 2 2 3 3 4 4 3 4 5 5 5 5 5 5 5 5 5 5 5 5 5 5 5 Average Carried 4 | . . . 1 2 2 2 2 2 3 3 3 2 4 5 4 4 4 4 4 4 5 4 4 4 4 4 4 Final Capacity 5 | 1 1 1 2 2 2 2 3 3 4 4 4 4 5 5 5 5 5 5 5 5 5 5 5 5 5 5 5 Final Carried 5 | . 1 1 2 2 2 2 2 3 4 3 3 3 5 5 5 5 5 5 5 5 5 5 5 5 5 5 5 Class Distribution -------------------- 67% | Scavenger-Scout 15% | Mutant 6% | Commander-Scout 3% | Machinist-Scout 3% | Gunner Dominant Class ---------------- Mutant | -10/Materials Mutant | -10/Mines Mutant | -9/Materials Scavenger-Scout | -9/Mines Scavenger-Scout | -9/Exiles Scavenger-Scout | -8/Mines Scavenger-Scout | -8/Materials Scout | -7/Factory Scavenger-Scout | -7/Lower Caves Scavenger-Scout | -7/Lower Caves Scavenger-Scout | -7/Data Miner Scavenger-Scout | -6/Proximity Caves Scavenger-Scout | -6/Factory Scavenger-Scout | -6/Lower Caves Scavenger-Scout | -6/Lower Caves Scavenger-Scout | -6/Zion Scavenger-Scout | -6/Deep Caves Scavenger-Scout | -5/Proximity Caves Scavenger-Scout | -5/Factory Scavenger-Scout | -5/Upper Caves Scavenger-Scout | -5/Upper Caves Scavenger-Scout | -5/Zhirov Scavenger-Scout | -4/Proximity Caves Scavenger-Scout | -4/Factory Scavenger-Scout | -4/Upper Caves Scavenger-Scout | -4/Upper Caves Mutant | -4/Warlord Resources | -11 -10 -10 -9 -9 -9 -8 -8 -7 -7 -7 -7 -6 -6 -6 -6 -6 -6 -5 -5 -5 -5 -5 -4 -4 -4 -4 -4 ----------- Run | Scr Mat Min Mat Min Exi Min Mat Fac Low Low Dat Pro Fac Low Low Zio Dee Pro Fac Upp Upp Zhi Pro Fac Upp Upp War Matter Collected 2720 | 260 40 20 80 50 . 10 200 130 40 10 . 90 176 30 30 20 248 172 306 10 . . 108 166 10 62 452 Remotely . | . . . . . . . . . . . . . . . . . . . . . . . . . . . . Salvage Created 30658 | 73 249 579 957 624 . 373 1413 321 552 456 . 760 2987 820 558 . 760 1288 4780 259 406 . 2635 2843 929 1328 4708 Parts 1502 | 4 38 26 60 42 . 22 97 16 33 15 . 48 129 43 23 . 54 72 198 20 18 . 95 128 32 49 240 Haulers Intercepted 29 | . . . 5 . . . 4 3 . . . . 4 . . . . . 6 . . . . 7 . . . Recyclers Shooed 7 | 1 1 . . 1 . . . . . . . . . . . . . . 1 . . . . 3 . . . Parts Field Recycled . | . . . . . . . . . . . . . . . . . . . . . . . . . . . . Retrieved Matter . | . . . . . . . . . . . . . . . . . . . . . . . . . . . . Parts Self-Destructed 692 | . . . . . . . . . 32 15 . 62 . 47 23 . . 55 . 20 18 . 73 . 33 43 271 Prevented 184 | . . . . . . . . . . . . . . . 1 . . 20 . . 2 . 20 . . 8 133 Kills | -11 -10 -10 -9 -9 -9 -8 -8 -7 -7 -7 -7 -6 -6 -6 -6 -6 -6 -5 -5 -5 -5 -5 -4 -4 -4 -4 -4 ------- Run | Scr Mat Min Mat Min Exi Min Mat Fac Low Low Dat Pro Fac Low Low Zio Dee Pro Fac Upp Upp Zhi Pro Fac Upp Upp War Combat Hostiles Destroyed 509 | . 10 10 16 12 . 6 24 5 18 8 . 19 34 17 12 . 10 28 62 7 6 . 34 31 13 30 97 Melee 1 | . . . . . . . . . . . . . . . . . . . . . . . . . . . 1 Guns 133 | . . . . . . 2 13 . . . . 9 22 10 8 . 3 4 20 2 1 . 16 9 3 9 2 Cannons 254 | . 10 10 16 12 . 3 10 4 17 8 . 10 6 7 4 . 6 14 36 5 5 . 9 20 10 11 21 AOE 79 | . . . . . . . . 1 . . . . 5 . . . . 7 6 . . . 7 . . 7 46 Classes Destroyed 26 | 2 6 2 2 1 . 1 1 1 . . . 1 . . . . 3 . 1 . . . 1 . 1 . 3 Worker 34 | . 1 2 2 3 . 2 2 . . . . . 4 . . . . . 11 . . . . 7 . . . Builder 12 | . 2 . . . . . 1 . . . . . 1 . . . . . 4 . . . 1 3 . . . Tunneler 6 | 1 1 . . 1 . . 2 . . . . . 1 . . . . . . . . . . . . . . Hauler 29 | . . . 5 . . . 4 3 . . . . 4 . . . . . 6 . . . . 7 . . . Recycler 26 | 1 1 2 2 2 . 4 1 . . . . . 2 . . . . . 8 . . . 2 1 . . . Mechanic 2 | . 1 . . . . . . . . . . . . . . . . . 1 . . . . . . . . Operator 2 | . . . . . . . . . . . . . . . . . . . 1 . . . . 1 . . . Watcher 24 | . 1 . 1 . . . 2 1 . . . . 5 . . . . . 6 . . . 2 6 . . . Swarmer 123 | . 9 5 . . . 3 7 . 6 3 . 10 3 6 4 . . 7 13 . . . 14 4 . 11 18 Saboteur 13 | . . . . . . . . . . . . . . . . . . . 1 . . . 1 . . . 11 Grunt 199 | . 1 2 11 11 . 2 10 1 10 4 . 6 20 6 6 . . 14 24 . 3 . 4 8 4 8 44 Brawler 11 | . . . . . . 1 . . . . . . . . . . . . 2 . 1 . 2 1 1 3 . Duelist 15 | . . . . 1 . . . . . . . . . 3 . . . 1 2 . . . 4 1 1 2 . Protector 6 | . . . . . . . . . . . . . . . . . . . . . . . 1 1 . 1 3 Sentry 45 | . . . 5 . . . 6 2 1 1 . 2 3 1 1 . . 2 8 . 1 . 5 3 2 2 . Demolisher 4 | . . 2 . . . . . . . . . . . . . . . . . . . . . . . 1 1 Specialist 3 | . . . . . . . . . . . . . . . . . . . . . . . . . . . 3 Hunter 32 | . . . . . . . 1 1 . . . . 7 . . . . 3 3 2 . . 2 10 . 1 2 Programmer 25 | . . . . . . . . 1 1 . . . 1 . 1 . . . 9 2 . . . 3 4 1 2 Behemoth 7 | . . . . . . . . . . . . 1 . 1 . . . 1 . 1 1 . 2 . . . . Striker 2 | . . . . . . . . . . . . . . . . . . . . . . . . . . . 2 Executioner 9 | . . . . . . . . . . . . . . . . . . . . . . . . . . . 9 Z-Technician 5 | . . . . . . . . . . . . . . . . . 5 . . . . . . . . . . Z-Light 8 | . . . . . . . . . . . . . . . . . 8 . . . . . . . . . . Assembled 1 | . . 1 . . . . . . . . . . . . . . . . . . . . . . . . . Golem 1 | . . . . . . . . . . . . . . . . . 1 . . . . . . . . . . Thug 1 | . . . . . . . . . . . . . . . . . . . . 1 . . . . . . . Savage 1 | . . . . . . . . . . . . . . . . . . . . 1 . . . . . . . Butcher 1 | . . . . . . . . . . . . . . . . . . . . . . . . . . . 1 Mutant 2 | . . . . . . . . . . . . . . . . . . . . . . . . . 1 . 1 Best Kill Streak 25 | 2 9 8 6 7 . 5 13 3 6 3 . 4 10 6 4 . 6 11 25 3 4 . 10 10 6 7 14 Combat Bots Only 14 | . 4 5 5 3 . 3 11 2 6 3 . 4 9 6 4 . 6 11 8 3 4 . 10 6 6 7 14 Max Kills in Single Turn 5 | 1 2 2 2 1 . 1 1 2 2 1 . 2 2 2 1 . 5 3 5 1 2 . 2 5 1 4 3 Gunslinging 1 | . . . . . . . . . . . . . . . . . . . . . . . 1 . . . . Exploded 4 | . . . . . . . . 1 . . . . 2 . . . . 3 3 . . . 2 . . 4 3 Melee 1 | . . . . . . . . . . . . . . . . . . . . . . . . . . . 1 Uniques/NPCs Destroyed 2 | . . . . . . . . . . . . . . . . . 1 . . . . . . . . . 1 Z-Imprinter (-6/Deep Caves) Warlord (-4/Warlord) Combat | -11 -10 -10 -9 -9 -9 -8 -8 -7 -7 -7 -7 -6 -6 -6 -6 -6 -6 -5 -5 -5 -5 -5 -4 -4 -4 -4 -4 -------- Run | Scr Mat Min Mat Min Exi Min Mat Fac Low Low Dat Pro Fac Low Low Zio Dee Pro Fac Upp Upp Zhi Pro Fac Upp Upp War Damage Taken 20104 | . 203 439 370 260 . 39 558 165 926 138 . 553 740 576 444 . 1046 965 1111 237 108 . 726 801 469 657 8573 Core 15445 | . 166 355 308 194 . 28 398 116 640 113 . 402 558 418 318 . 806 756 865 188 85 . 548 625 335 481 6742 Absorbed by Shields 283 | . . . . . . . . . . . . . . . . . . . . . . . . . . 182 101 Redirected to Core 13951 | . 114 289 216 159 . 23 379 96 543 87 . 347 453 376 255 . 677 706 744 160 85 . 507 554 307 442 6432 Core Remaining (%) 93 | 100 . 53 . . . 100 100 . . . . 100 . . . . . 100 . . . . 100 . . . . Volleys Fired 1128 | 8 35 23 41 45 . 18 51 17 40 14 . 34 81 28 20 12 36 59 133 16 9 . 80 112 24 44 148 Largest 5 | 2 2 2 2 3 . 3 3 3 4 4 . 4 5 5 5 1 5 4 5 4 4 . 4 4 4 4 4 Hottest 430 | 80 120 120 136 211 . 211 211 230 305 305 . 330 420 430 420 90 420 211 255 212 212 . 212 212 212 212 212 Shots Fired 3254 | 16 70 46 82 92 . 54 153 51 121 53 . 133 270 140 99 12 99 164 461 64 30 . 258 288 80 151 267 Gun 1237 | 16 1 . . 2 . 18 89 17 . . . 78 143 76 60 . 48 54 208 32 12 . 116 99 36 70 62 Cannon 1917 | . 69 46 82 90 . 36 64 34 121 53 . 55 121 64 39 12 43 103 252 32 18 . 134 183 44 74 148 Launcher 100 | . . . . . . . . . . . . . 6 . . . 8 7 1 . . . 8 6 . 7 57 Special . | . . . . . . . . . . . . . . . . . . . . . . . . . . . . Kinetic . | . . . . . . . . . . . . . . . . . . . . . . . . . . . . Thermal 3154 | 16 70 46 82 92 . 54 153 51 121 53 . 133 264 140 99 12 91 157 460 64 30 . 250 282 80 144 210 Explosive . | . . . . . . . . . . . . . . . . . . . . . . . . . . . . Electromagnetic 100 | . . . . . . . . . . . . . 6 . . . 8 7 1 . . . 8 6 . 7 57 Robot Hit Streak 72 | 5 9 9 21 12 . 22 33 24 19 30 . 17 30 30 18 . 22 28 44 66 72 . 35 40 56 30 70 Robot Miss Streak 5 | 2 2 3 2 2 . 1 2 1 1 1 . 5 2 3 4 . 1 1 2 . 1 . 2 2 1 1 1 Penetration Max . | . . . . . . . . . . . . . . . . . . . . . . . . . . . . Secondary Targets 5 | . . . . . . . 2 . . . . 2 . . . . . . . . . . 1 . . . . Max Gunslinging Chain 1 | . . . . . . . 1 . . . . 1 . . . . . . . . . . 1 . . . . Shots Hit Robots 2061 | 8 36 28 58 50 . 32 101 39 82 33 . 76 137 71 56 . 42 113 294 45 21 . 166 193 58 114 208 Core Hits 1094 | 3 17 18 29 21 . 13 52 14 28 13 . 34 80 30 19 . 25 45 144 11 12 . 77 106 21 52 230 Critical Hits 42 | . . 1 1 . . . . . 3 1 . 3 18 5 4 . 2 3 1 . . . . . . . . Critical Kills 24 | . . . 1 . . . . . 1 1 . 1 11 3 1 . 2 2 1 . . . . . . . . Critical Parts Destroyed 17 | . . 1 . . . . . . 2 . . 2 7 2 2 . . 1 . . . . . . . . . Melee Attacks 2 | . . . . . . . . 1 1 . . . . . . . . . . . . . . . . . . Impact . | . . . . . . . . . . . . . . . . . . . . . . . . . . . . Slashing 2 | . . . . . . . . 1 1 . . . . . . . . . . . . . . . . . . Piercing . | . . . . . . . . . . . . . . . . . . . . . . . . . . . . Sneak Attacks . | . . . . . . . . . . . . . . . . . . . . . . . . . . . . Combat Hostiles . | . . . . . . . . . . . . . . . . . . . . . . . . . . . . Follow-up Attacks . | . . . . . . . . . . . . . . . . . . . . . . . . . . . . Damage Inflicted 83241 | 112 649 527 1238 1089 . 626 1831 1443 1970 775 . 1866 5313 2201 1472 . 3636 4703 12440 1635 984 . 6880 8776 2176 4214 16685 Guns 23016 | 112 . . . . . 275 1319 276 . . . 997 2775 1221 969 . 813 1040 4086 567 327 . 2377 2320 855 1317 1370 Cannons 40754 | . 649 527 1238 1089 . 351 512 627 1970 775 . 869 1577 980 503 . 514 2658 6920 1068 657 . 3343 5323 1321 2204 5079 Explosions 19471 | . . . . . . . . 540 . . . . 961 . . . 2309 1005 1434 . . . 1160 1133 . 693 10236 Melee . | . . . . . . . . . . . . . . . . . . . . . . . . . . . . Ramming . | . . . . . . . . . . . . . . . . . . . . . . . . . . . . Kinetic . | . . . . . . . . . . . . . . . . . . . . . . . . . . . . Thermal 70515 | 112 649 527 1238 1089 . 626 1831 1443 1970 775 . 1866 4670 2201 1472 . 3477 3698 11643 1635 984 . 5938 7904 2176 3625 8966 Explosive 1144 | . . . . . . . . . . . . . . . . . . . 797 . . . . 347 . . . Electromagnetic 11582 | . . . . . . . . . . . . . 643 . . . 159 1005 . . . . 942 525 . 589 7719 Impact . | . . . . . . . . . . . . . . . . . . . . . . . . . . . . Slashing . | . . . . . . . . . . . . . . . . . . . . . . . . . . . . Piercing . | . . . . . . . . . . . . . . . . . . . . . . . . . . . . Highest Corruption 7 | . . . . . . . . . . . . . . . 1 1 . . 2 2 2 2 2 . . . 7 Average Corruption 2 | . . . . . . . . . . . . . . . 1 1 . . 1 2 2 2 2 . . . 5 Corruption Purged . | . . . . . . . . . . . . . . . . . . . . . . . . . . . . Effects 74 | . . . . . . . . . . . . . . . 3 . . . 12 9 4 1 13 . . . 32 Message Errors 16 | . . . . . . . . . . . . . . . 1 . . . 4 1 2 1 1 . . . 6 Matter Fused 9 | . . . . . . . . . . . . . . . . . . . . . . . . . . . 9 Heat Flow Errors 6 | . . . . . . . . . . . . . . . . . . . 1 2 . . 1 . . . 2 Energy Discharges 5 | . . . . . . . . . . . . . . . . . . . 1 2 . . . . . . 2 Parts Rejected 2 | . . . . . . . . . . . . . . . . . . . . . . . . . . . 2 Data Loss (minor) 12 | . . . . . . . . . . . . . . . . . . . 2 2 1 . 3 . . . 4 Data Loss (major) 3 | . . . . . . . . . . . . . . . . . . . . . . . . . . . 3 Misfires 1 | . . . . . . . . . . . . . . . . . . . . . . . . . . . 1 Targeting Errors 18 | . . . . . . . . . . . . . . . 2 . . . 4 2 1 . 6 . . . 3 Weapon Failures 2 | . . . . . . . . . . . . . . . . . . . . . . . 2 . . . . Overload Shots . | . . . . . . . . . . . . . . . . . . . . . . . . . . . . Overflow Damage 2404 | . 5 . . 19 . . 1 186 23 11 . . 102 34 . . 165 103 621 73 29 . 167 351 136 138 240 Projectiles 1784 | . 5 . . 19 . . 1 16 23 11 . . 93 34 . . . 103 567 73 29 . 163 193 136 131 187 Explosions 620 | . . . . . . . . 170 . . . . 9 . . . 165 . 54 . . . 4 158 . 7 53 Melee . | . . . . . . . . . . . . . . . . . . . . . . . . . . . . Knockbacks . | . . . . . . . . . . . . . . . . . . . . . . . . . . . . Impact . | . . . . . . . . . . . . . . . . . . . . . . . . . . . . Kinetic . | . . . . . . . . . . . . . . . . . . . . . . . . . . . . Secondary . | . . . . . . . . . . . . . . . . . . . . . . . . . . . . Self-Inflicted Damage 8 | . . . . . . . . . . . . . . . . . . . . . . . . . . . 8 Shots 1 | . . . . . . . . . . . . . . . . . . . . . . . . . . . 1 Rammed . | . . . . . . . . . . . . . . . . . . . . . . . . . . . . Targets Rammed . | . . . . . . . . . . . . . . . . . . . . . . . . . . . . Kicked . | . . . . . . . . . . . . . . . . . . . . . . . . . . . . Crushed . | . . . . . . . . . . . . . . . . . . . . . . . . . . . . Highest Temperature 205 | . 36 . 1 6 . 18 75 . . . . 6 81 162 198 . 192 . 171 148 . . 185 . 19 . 205 Average Temperature 46 | . 23 . 1 4 . 6 14 . . . . 3 27 61 78 . 74 . 84 92 . . 140 . 10 . 111 Received Heat Transfer 4291 | . 30 . 192 138 . 9 180 30 324 54 . 60 219 174 192 . 342 228 162 36 27 . 72 93 156 182 1391 Siege Activations . | . . . . . . . . . . . . . . . . . . . . . . . . . . . . Robots Corrupted 34 | . . . . . . . . . . . . . 1 . . . 1 2 . . . . 1 2 . 1 26 Combat Hostiles 34 | . . . . . . . . . . . . . 1 . . . 1 2 . . . . 1 2 . 1 26 Parts Fried 98 | . . . . . . . . . . . . . 6 . . . . 3 . . . . 5 6 . 7 71 Impact Corruptions . | . . . . . . . . . . . . . . . . . . . . . . . . . . . . Robots Melted 7 | . . . . . . 1 1 . 1 . . . . . . . . 1 . . . . 1 . . 2 . Combat Hostiles 7 | . . . . . . 1 1 . 1 . . . . . . . . 1 . . . . 1 . . 2 . Parts Melted 133 | . 2 2 3 3 . . 12 3 4 2 . 7 20 4 6 . 9 9 15 5 . . 4 6 5 8 4 Heat Transferred 68511 | 250 1369 1110 2294 1961 . 1110 3367 1823 3083 1225 . 2815 5561 2690 1857 . 1147 3066 9957 1178 769 . 5102 5798 1859 3135 5985 Parts Sabotaged 5 | . . . . . . . . . . . . . . . . . . . 4 . . . . . . . 1 Parts Stolen . | . . . . . . . . . . . . . . . . . . . . . . . . . . . . Parts Stripped . | . . . . . . . . . . . . . . . . . . . . . . . . . . . . Power Chain Reactions 38 | . . . . . . . . . . . . . 2 . . . . 1 . . . . 1 1 . 2 31 Missiles Intercepted . | . . . . . . . . . . . . . . . . . . . . . . . . . . . . Alert | -11 -10 -10 -9 -9 -9 -8 -8 -7 -7 -7 -7 -6 -6 -6 -6 -6 -6 -5 -5 -5 -5 -5 -4 -4 -4 -4 -4 ------- Run | Scr Mat Min Mat Min Exi Min Mat Fac Low Low Dat Pro Fac Low Low Zio Dee Pro Fac Upp Upp Zhi Pro Fac Upp Upp War Peak Influence 2501 | 10 303 357 534 365 . 289 601 1120 . . . . 1627 . . . . . 2501 . . . . 2212 . . . Initial 308 | . 6 117 139 90 . . 34 261 . . . . 308 . . . . . 170 . . . . 216 . . . Average 762 | 2 141 257 237 204 . 177 402 745 . . . . 696 . . . . . 1339 . . . . 1270 . . . Maximum Alert Level 5 | . 1 1 2 1 . 1 2 4 . . . . 5 . . . . . 5 . . . . 5 . . . Low Security (%) 14 | 100 66 18 34 51 . 42 7 . . . . . . . . . . . 2 . . . . . . . . Level 1 26 | . 33 81 45 48 . 57 40 17 . . . . 21 . . . . . 13 . . . . 6 . . . Level 2 17 | . . . 19 . . . 52 21 . . . . 36 . . . . . 5 . . . . 14 . . . Level 3 12 | . . . . . . . . 58 . . . . 26 . . . . . 8 . . . . 11 . . . Level 4 16 | . . . . . . . . 1 . . . . 14 . . . . . 32 . . . . 40 . . . Level 5 10 | . . . . . . . . . . . . . . . . . . . 36 . . . . 11 . . . High Security 2 | . . . . . . . . . . . . . . . . . . . 1 . . . . 15 . . . Max Security . | . . . . . . . . . . . . . . . . . . . . . . . . . . . . Squads Dispatched 66 | . 3 . 1 . . . 2 11 . . . 1 10 . . . . . 19 . . . . 18 . 1 . Investigation 28 | . 1 . 1 . . . . 5 . . . 1 8 . . . . . 7 . . . . 5 . . . Extermination 7 | . . . . . . . . 1 . . . . 1 . . . . . 4 . . . . 1 . . . Reinforcement 11 | . 2 . . . . . 1 3 . . . . . . . . . . 2 . . . . 3 . . . Assault 17 | . . . . . . . . 2 . . . . . . . . . . 6 . . . . 8 . 1 . Garrison 3 | . . . . . . . 1 . . . . . 1 . . . . . . . . . . 1 . . . Intercept . | . . . . . . . . . . . . . . . . . . . . . . . . . . . . Construction Impeded 2 | . . . . . . . . 1 . . . . . . . . . . . . . . . 1 . . . Haulers Reinforced 5 | . . . . . . . . 1 . . . . . . . . . . 2 . . . . 2 . . . Stealth | -11 -10 -10 -9 -9 -9 -8 -8 -7 -7 -7 -7 -6 -6 -6 -6 -6 -6 -5 -5 -5 -5 -5 -4 -4 -4 -4 -4 --------- Run | Scr Mat Min Mat Min Exi Min Mat Fac Low Low Dat Pro Fac Low Low Zio Dee Pro Fac Upp Upp Zhi Pro Fac Upp Upp War Distress Signals 15 | . 2 . 1 . . . 3 . . . . . 1 . . . . . 4 . . . 1 2 . . 1 Communications Jammed . | . . . . . . . . . . . . . . . . . . . . . . . . . . . . Distress Signals . | . . . . . . . . . . . . . . . . . . . . . . . . . . . . Times Spotted 735 | . 23 14 18 12 . 6 35 5 21 9 . 24 40 21 12 . 17 30 70 8 5 . 40 62 17 35 211 Peak Tracking Total 13 | . 6 12 5 3 . 3 5 2 7 3 . 5 7 7 4 . 13 11 6 3 4 . 9 9 7 10 13 Tactical Retreats 46 | . 1 1 . 1 . . 1 1 3 1 . 1 4 2 . . 1 2 2 1 . . 2 7 1 4 10 Traps | -11 -10 -10 -9 -9 -9 -8 -8 -7 -7 -7 -7 -6 -6 -6 -6 -6 -6 -5 -5 -5 -5 -5 -4 -4 -4 -4 -4 ------- Run | Scr Mat Min Mat Min Exi Min Mat Fac Low Low Dat Pro Fac Low Low Zio Dee Pro Fac Upp Upp Zhi Pro Fac Upp Upp War Traps Triggered 19 | . . . . . . . . 1 . . . . 2 . . . . . 2 . . . 4 2 . . 8 Indirectly 4 | . . . . . . . . . . . . . . . . . . . . . . . . . . . 4 Trap Hack Attempts . | . . . . . . . . . . . . . . . . . . . . . . . . . . . . Triggered . | . . . . . . . . . . . . . . . . . . . . . . . . . . . . Disarmed . | . . . . . . . . . . . . . . . . . . . . . . . . . . . . Reprogrammed . | . . . . . . . . . . . . . . . . . . . . . . . . . . . . Reused . | . . . . . . . . . . . . . . . . . . . . . . . . . . . . Traps Extracted . | . . . . . . . . . . . . . . . . . . . . . . . . . . . . Installed . | . . . . . . . . . . . . . . . . . . . . . . . . . . . . Triggered 11 | . . . . . . . . . . . . . . . 2 . . . . . 1 . . . 1 . 7 Machines | -11 -10 -10 -9 -9 -9 -8 -8 -7 -7 -7 -7 -6 -6 -6 -6 -6 -6 -5 -5 -5 -5 -5 -4 -4 -4 -4 -4 ---------- Run | Scr Mat Min Mat Min Exi Min Mat Fac Low Low Dat Pro Fac Low Low Zio Dee Pro Fac Upp Upp Zhi Pro Fac Upp Upp War Machines Disabled 111 | . . . . 1 . 6 4 11 1 . . 2 24 . . 3 3 2 13 . . . 6 29 3 . 3 Max in Single Turn 10 | . . . . . . 4 1 10 1 . . 1 4 . . 1 2 1 4 . . . 1 5 1 . 1 Garrison Access 5 | . . . . . . . 1 1 . . . . 1 . . . . . 1 . . . . 1 . . . Machines Sabotaged 1 | . . . . . . . . . . . . . 1 . . . . . . . . . . . . . . Garrisons Compromised . | . . . . . . . . . . . . . . . . . . . . . . . . . . . . Overloaded Fab Kills . | . . . . . . . . . . . . . . . . . . . . . . . . . . . . Fab Network Shutdowns 3 | . . . . . . . . 1 . . . . . . . . . . 1 . . . . 1 . . . Hacking | -11 -10 -10 -9 -9 -9 -8 -8 -7 -7 -7 -7 -6 -6 -6 -6 -6 -6 -5 -5 -5 -5 -5 -4 -4 -4 -4 -4 --------- Run | Scr Mat Min Mat Min Exi Min Mat Fac Low Low Dat Pro Fac Low Low Zio Dee Pro Fac Upp Upp Zhi Pro Fac Upp Upp War Machines Accessed 94 | . 3 . 4 . 1 . 7 7 2 2 4 1 16 . 1 1 . . 17 1 . 4 3 14 2 . 4 Terminals 46 | . 2 . 3 . . . 5 3 1 . . 1 12 . . . . . 8 1 . . 1 9 . . . Fabricators 9 | . . . . . . . . 2 . . . . 1 . . . . . 3 . . . 1 2 . . . Repair Stations . | . . . . . . . . . . . . . . . . . . . . . . . . . . . . Recycling Units 9 | . 1 . 1 . . . . 2 . . . . 1 . . . . . 3 . . . 1 . . . . Scanalyzers 5 | . . . . . . . 1 . . . . . 1 . . . . . 2 . . . . 1 . . . Garrison Access 5 | . . . . . . . 1 . . . . . 1 . . . . . 1 . . . . 2 . . . Total Hacks 291 | . 8 . 10 . 1 . 17 20 10 2 27 5 59 . 1 3 . . 53 4 . 17 11 31 4 . 8 Successful 171 | . 1 . 7 . 1 . 8 8 7 2 27 3 28 . 1 3 . . 27 3 . 17 4 12 4 . 8 Failed 120 | . 7 . 3 . . . 9 12 3 . . 2 31 . . . . . 26 1 . . 7 19 . . . Catastrophic 26 | . 3 . 1 . . . 1 . 2 . . 1 4 . . . . . 5 . . . 2 7 . . . Database Lockouts . | . . . . . . . . . . . . . . . . . . . . . . . . . . . . Manual 79 | . 5 . 4 . . . 2 8 3 . . 2 12 . . . . . 19 3 . . 8 12 . . 1 Terminals 161 | . 6 . 9 . . . 13 9 9 . . 5 50 . . . . . 31 4 . . 5 20 . . . Fabricators 24 | . . . . . . . . 6 . . . . 3 . . . . . 6 . . . 3 6 . . . Repair Stations . | . . . . . . . . . . . . . . . . . . . . . . . . . . . . Recycling Units 19 | . 2 . 1 . . . . 5 . . . . 1 . . . . . 7 . . . 3 . . . . Scanalyzers 14 | . . . . . . . 3 . . . . . 4 . . . . . 6 . . . . 1 . . . Garrison Access 9 | . . . . . . . 1 . . . . . 1 . . . . . 3 . . . . 4 . . . Terminal Hacks 124 | . . . 6 . 1 . 5 3 7 2 27 3 18 . 1 3 . . 12 3 . 17 1 3 4 . 8 Record 37 | . . . . . 1 . . . 6 1 11 3 . . . . . . . 1 . 5 . . 3 . 6 Part Schematic 17 | . . . . . . . . . . . 8 . . . . 3 . . 2 . . 4 . . . . . Robot Schematic 6 | . . . . . . . . . . . 5 . 1 . . . . . . . . . . . . . . Robot Analysis 5 | . . . . . . . . . . . . . 1 . . . . . . . . 4 . . . . . Prototype ID Bank 15 | . . . . . . . 1 2 . . 3 . 4 . . . . . 1 . . 4 . . . . . Open Door 6 | . . . . . . . . . 1 1 . . . . 1 . . . . . . . . . 1 . 2 Branch Access Points 2 | . . . 1 . . . . . . . . . . . . . . . 1 . . . . . . . . Emergency Access Points 2 | . . . 1 . . . . 1 . . . . . . . . . . . . . . . . . . . Terminal Index 1 | . . . . . . . . . . . . . . . . . . . 1 . . . . . . . . Alert Level 2 | . . . . . . . . . . . . . 1 . . . . . . 1 . . . . . . . Unreport Threat 8 | . . . 2 . . . 1 . . . . . . . . . . . 2 1 . . 1 1 . . . Locate Traps 6 | . . . . . . . 1 . . . . . 3 . . . . . 1 . . . . 1 . . . Hauler Manifests 5 | . . . . . . . 1 . . . . . 2 . . . . . 1 . . . . 1 . . . Registered Components 2 | . . . . . . . . . . . . . 1 . . . . . 1 . . . . . . . . Registered Prototypes 1 | . . . . . . . . . . . . . 1 . . . . . . . . . . . . . . Zone Layout 9 | . . . 2 . . . 1 . . . . . 4 . . . . . 2 . . . . . . . . Fabricator Hacks 13 | . . . . . . . . 2 . . . . 2 . . . . . 5 . . . 2 2 . . . Load Schematic 5 | . . . . . . . . . . . . . 1 . . . . . 2 . . . 1 1 . . . Build 8 | . . . . . . . . 2 . . . . 1 . . . . . 3 . . . 1 1 . . . Repair Station Hacks . | . . . . . . . . . . . . . . . . . . . . . . . . . . . . Recycling Unit Hacks 3 | . . . . . . . . 1 . . . . . . . . . . 2 . . . . . . . . Retrieve Components 3 | . . . . . . . . 1 . . . . . . . . . . 2 . . . . . . . . Scanalyzer 7 | . . . . . . . 2 . . . . . 2 . . . . . 3 . . . . . . . . Insert Component 4 | . . . . . . . 1 . . . . . 1 . . . . . 2 . . . . . . . . Analyze 3 | . . . . . . . 1 . . . . . 1 . . . . . 1 . . . . . . . . Garrison Access Hacks 3 | . . . . . . . 1 . . . . . 1 . . . . . . . . . . 1 . . . Seal Access 3 | . . . . . . . 1 . . . . . 1 . . . . . . . . . . 1 . . . Unauthorized Hacks 21 | . 1 . 1 . . . . 2 . . . . 5 . . . . . 5 . . . 1 6 . . . Terminals 7 | . . . . . . . . . . . . . 3 . . . . . 1 . . . . 3 . . . Assimilate 1 | . . . . . . . . . . . . . . . . . . . . . . . . 1 . . . Botnet 4 | . . . . . . . . . . . . . 2 . . . . . 1 . . . . 1 . . . Detonate 1 | . . . . . . . . . . . . . . . . . . . . . . . . 1 . . . Sabotage 1 | . . . . . . . . . . . . . 1 . . . . . . . . . . . . . . Fabricators 3 | . . . . . . . . . . . . . . . . . . . 1 . . . . 2 . . . Prioritize 1 | . . . . . . . . . . . . . . . . . . . 1 . . . . . . . . Haulers 1 | . . . . . . . . . . . . . . . . . . . . . . . . 1 . . . Overload 1 | . . . . . . . . . . . . . . . . . . . . . . . . 1 . . . Repair Stations . | . . . . . . . . . . . . . . . . . . . . . . . . . . . . Recycling Units 7 | . 1 . 1 . . . . 2 . . . . 1 . . . . . 1 . . . 1 . . . . Tunnel 7 | . 1 . 1 . . . . 2 . . . . 1 . . . . . 1 . . . 1 . . . . Scanalyzers 3 | . . . . . . . . . . . . . 1 . . . . . 1 . . . . 1 . . . Extract 3 | . . . . . . . . . . . . . 1 . . . . . 1 . . . . 1 . . . Garrison Access 1 | . . . . . . . . . . . . . . . . . . . 1 . . . . . . . . Jam 1 | . . . . . . . . . . . . . . . . . . . 1 . . . . . . . . Data Cores Recovered 1 | . . . . . . . . . . . . . . . . . . . 1 . . . . . . . . Used 1 | . . . . . . . . . . . . . . . . . . . 1 . . . . . . . . Hacking Detections 56 | . 2 . 3 . . . 5 5 1 . . 1 12 . . . . . 12 1 . . 3 11 . . . Full Trace Events 19 | . . . . . . . . 3 1 . . 1 5 . . . . . 4 1 . . 1 3 . . . Feedback Events . | . . . . . . . . . . . . . . . . . . . . . . . . . . . . Feedback Blocked . | . . . . . . . . . . . . . . . . . . . . . . . . . . . . Robot Schematics Acquired 6 | . . . . . . . . . . . 5 . 1 . . . . . . . . . . . . . . Robots Built 2 | . . . . . . . . 2 . . . . . . . . . . . . . . . . . . . Matter 219 | . . . . . . . . 219 . . . . . . . . . . . . . . . . . . . Time 38 | . . . . . . . . 38 . . . . . . . . . . . . . . . . . . . Total Robot Build Rating 6 | . . . . . . . . 6 . . . . . . . . . . . . . . . . . . . Part Schematics Acquired 36 | . . . . . . . 1 . . . 8 . 7 . . 3 . . 10 . . 4 . 3 . . . Parts Built 9 | . . . . . . . . . . . . . 2 . . . . . 5 . . . . 2 . . . Matter 1210 | . . . . . . . . . . . . . 190 . . . . . 786 . . . . 234 . . . Time 422 | . . . . . . . . . . . . . 31 . . . . . 333 . . . . 58 . . . Total Part Build Rating 58 | . . . . . . . . . . . . . 10 . . . . . 34 . . . . 14 . . . Parts Repaired . | . . . . . . . . . . . . . . . . . . . . . . . . . . . . Time . | . . . . . . . . . . . . . . . . . . . . . . . . . . . . Parts Recycled . | . . . . . . . . . . . . . . . . . . . . . . . . . . . . Recycled Matter . | . . . . . . . . . . . . . . . . . . . . . . . . . . . . Retrieved Matter . | . . . . . . . . . . . . . . . . . . . . . . . . . . . . Retrieved Components 3 | . . . . . . . . 2 . . . . . . . . . . 1 . . . . . . . . Parts Scanalyzed 4 | . . . . . . . 1 . . . . . 1 . . . . . 2 . . . . . . . . Part Schematics Acquired 3 | . . . . . . . 1 . . . . . 1 . . . . . 1 . . . . . . . . Parts Damaged . | . . . . . . . . . . . . . . . . . . . . . . . . . . . . Bothacking | -11 -10 -10 -9 -9 -9 -8 -8 -7 -7 -7 -7 -6 -6 -6 -6 -6 -6 -5 -5 -5 -5 -5 -4 -4 -4 -4 -4 ------------ Run | Scr Mat Min Mat Min Exi Min Mat Fac Low Low Dat Pro Fac Low Low Zio Dee Pro Fac Upp Upp Zhi Pro Fac Upp Upp War Used RIF Installer . | . . . . . . . . . . . . . . . . . . . . . . . . . . . . Robots Hacked . | . . . . . . . . . . . . . . . . . . . . . . . . . . . . Non-combat . | . . . . . . . . . . . . . . . . . . . . . . . . . . . . Combat . | . . . . . . . . . . . . . . . . . . . . . . . . . . . . Robot Hacks Applied . | . . . . . . . . . . . . . . . . . . . . . . . . . . . . Relay Couplers Released 2 | . . . . . . . 1 1 . . . . . . . . . . . . . . . . . . . Machine Destruction 2 | . . . . . . . 1 1 . . . . . . . . . . . . . . . . . . . Robots Rewired 24 | . . . . . . . . . . . . . 1 2 . . . . . . . . 13 . 6 2 . Allies Hacked . | . . . . . . . . . . . . . . . . . . . . . . . . . . . . Hacks Repelled . | . . . . . . . . . . . . . . . . . . . . . . . . . . . . Allies | -11 -10 -10 -9 -9 -9 -8 -8 -7 -7 -7 -7 -6 -6 -6 -6 -6 -6 -5 -5 -5 -5 -5 -4 -4 -4 -4 -4 -------- Run | Scr Mat Min Mat Min Exi Min Mat Fac Low Low Dat Pro Fac Low Low Zio Dee Pro Fac Upp Upp Zhi Pro Fac Upp Upp War Total Allies 30 | . . . . 2 . . . 2 . . . 1 1 2 . . . . . . . . 13 1 6 2 . Largest Group 10 | . . . . 2 1 . . 2 2 . . 1 1 2 . . . . . . . . 10 10 6 6 1 Highest-Rated Group 344 | . . . . 49 18 . . 34 32 . . 94 29 60 . . . . . . . . 344 344 244 244 30 Highest-Rated Ally 94 | . . . . 31 18 . . 17 17 . . 94 29 30 . . . . . . . . 49 49 47 47 30 Total Orders 20 | . . . . . . . . . . . . . . . . . . . . . . . . . . . 20 RETURN 20 | . . . . . . . . . . . . . . . . . . . . . . . . . . . 20 Ally Attacks 296 | . . . . 9 . . . . . . . 26 2 9 . . . . . . . . 29 54 16 42 109 Total Damage 18268 | . . . . 147 . . . . . . . 993 19 307 . . . . . . . . 831 2168 401 932 12470 Kills 85 | . . . . 2 . . . . . . . 8 . 2 . . . . . . . . 4 13 3 3 50 Allies Corrupted 1 | . . . . . . . . . . . . . . . . . . . . . . . . . . . 1 Allies Melted 1 | . . . . . . . . . . . . . . . . . . . . . . . . . . 1 . Intel | -11 -10 -10 -9 -9 -9 -8 -8 -7 -7 -7 -7 -6 -6 -6 -6 -6 -6 -5 -5 -5 -5 -5 -4 -4 -4 -4 -4 ------- Run | Scr Mat Min Mat Min Exi Min Mat Fac Low Low Dat Pro Fac Low Low Zio Dee Pro Fac Upp Upp Zhi Pro Fac Upp Upp War Robot Analysis Total 5 | . . . . . . . . . . . . . 1 . . . . . . . . 4 . . . . . Derelict Logs Recovered 21 | . . . . 2 . . . . 2 2 . 2 . 1 . 1 . 3 . 1 1 . 2 . 2 2 . Drone Launches 20 | . . . . . . . . . . . . . . . . . . . . . . . . . . . 20 Drone Recoveries 20 | . . . . . . . . . . . . . . . . . . . . . . . . . . . 20 Exploration | -11 -10 -10 -9 -9 -9 -8 -8 -7 -7 -7 -7 -6 -6 -6 -6 -6 -6 -5 -5 -5 -5 -5 -4 -4 -4 -4 -4 ------------- Run | Scr Mat Min Mat Min Exi Min Mat Fac Low Low Dat Pro Fac Low Low Zio Dee Pro Fac Upp Upp Zhi Pro Fac Upp Upp War Turns Passed 20987 | 69 380 207 548 859 176 440 714 552 635 423 41 748 1621 805 561 634 680 809 2004 496 321 80 1152 1243 531 1069 3189 Spaces Moved 19997 | 38 240 135 445 654 216 478 671 725 666 659 78 843 1550 846 625 884 612 538 1572 712 537 132 1118 1474 719 1053 1777 Core 1 | 1 . . . . . . . . . . . . . . . . . . . . . . . . . . . Treads . | . . . . . . . . . . . . . . . . . . . . . . . . . . . . Legs . | . . . . . . . . . . . . . . . . . . . . . . . . . . . . Wheels 395 | 37 240 118 . . . . . . . . . . . . . . . . . . . . . . . . . Hover 19601 | . . 17 445 654 216 478 671 725 666 659 78 843 1550 846 625 884 612 538 1572 712 537 132 1118 1474 719 1053 1777 Flight . | . . . . . . . . . . . . . . . . . . . . . . . . . . . . Fastest Speed 43 | 50 90 76 76 76 76 76 53 53 53 53 53 53 53 68 68 63 63 63 52 52 52 52 52 43 43 43 43 Average Speed 57 | 88 90 88 76 76 76 76 61 53 53 53 53 53 65 68 68 67 64 63 58 52 52 52 52 43 43 43 44 Slowest Speed 114 | 90 90 90 76 76 76 76 76 62 53 53 53 53 68 68 68 68 72 63 114 52 52 52 52 52 43 43 45 Overloaded Moves . | . . . . . . . . . . . . . . . . . . . . . . . . . . . . Propulsion Burnouts . | . . . . . . . . . . . . . . . . . . . . . . . . . . . . Robots Hopped . | . . . . . . . . . . . . . . . . . . . . . . . . . . . . Cave-ins Triggered . | . . . . . . . . . . . . . . . . . . . . . . . . . . . . Exploration Rate (%) 66 | 4 46 49 53 93 55 92 66 23 82 84 70 90 41 85 77 86 65 65 40 82 81 59 87 42 82 89 75 Regions Visited 27 Branch Regions 20 Pre-discovered Areas 19 | . 1 . 1 . 1 . . 2 . . 1 . 1 . . 3 . 1 1 1 1 3 2 . . . . Known Exits Taken 24 | . . . 1 1 1 1 1 1 1 1 1 1 1 1 1 1 1 1 1 1 1 1 1 1 1 1 . Unknown Exits Taken 3 | 1 1 1 . . . . . . . . . . . . . . . . . . . . . . . . . Scrap Searched 40 | . . . . 3 . 1 . . 2 4 . 3 . 3 3 3 . 1 . 4 4 . 2 . 2 5 . Spaces Dug 100 | . . . . . . . . 1 1 . . . 11 11 . . 9 3 13 5 . . 2 24 2 . 18 Terrain Destroyed 1102 | . . . . . . 31 . 38 1 . . 2 238 52 22 . 22 45 215 18 5 . 42 202 13 42 114 Melee 2 | . . . . . . . . 1 1 . . . . . . . . . . . . . . . . . . Projectile 463 | . . . . . . . . . . . . 2 51 52 22 . 21 41 93 18 5 . 40 44 13 30 31 AOE 637 | . . . . . . 31 . 37 . . . . 187 . . . 1 4 122 . . . 2 158 . 12 83 Terrain Rammed . | . . . . . . . . . . . . . . . . . . . . . . . . . . . . Walls Destroyed . | . . . . . . . . . . . . . . . . . . . . . . . . . . . . Machines Disabled . | . . . . . . . . . . . . . . . . . . . . . . . . . . . . Actions | -11 -10 -10 -9 -9 -9 -8 -8 -7 -7 -7 -7 -6 -6 -6 -6 -6 -6 -5 -5 -5 -5 -5 -4 -4 -4 -4 -4 --------- Run | Scr Mat Min Mat Min Exi Min Mat Fac Low Low Dat Pro Fac Low Low Zio Dee Pro Fac Upp Upp Zhi Pro Fac Upp Upp War Total 27246 | 54 332 176 574 923 227 513 861 851 854 698 77 1064 1969 995 702 902 835 882 2395 806 559 142 1533 1884 894 1587 3957 Wait 4550 | 2 40 9 36 202 10 14 65 77 99 22 . 123 218 68 25 1 102 199 534 61 5 2 184 229 91 439 1693 Move 19969 | 37 239 134 444 653 215 477 670 724 665 658 77 842 1549 845 624 883 611 537 1571 711 536 131 1116 1473 718 1052 1777 Hop . | . . . . . . . . . . . . . . . . . . . . . . . . . . . . Pick Up 68 | . 1 1 2 . . . 5 2 1 . . 5 12 2 3 1 5 3 5 2 . 1 2 2 1 4 8 Fast Attach 148 | 5 4 2 7 4 1 . 14 9 2 . . 7 11 3 . 2 17 4 27 . 1 3 . 12 . 1 12 Attach 14 | . . . . . . . 3 . . 1 . 1 1 . 1 . . 2 1 1 . 1 . . . 1 1 Detach 6 | . . . . . . . 2 . . . . . . . . . . . 1 1 . . . . . . 2 Swap 32 | 1 . . 2 . . . 3 4 2 . . 1 2 . 2 . 3 7 2 . . 1 . 1 1 . . Drop 200 | 1 2 3 8 1 1 . 17 9 1 . . 13 18 4 3 3 23 10 31 2 . 3 2 12 1 4 28 Fire 1128 | 8 35 23 41 45 . 18 51 17 40 14 . 34 81 28 20 12 36 59 133 16 9 . 80 112 24 44 148 Melee 2 | . . . . . . . . 1 1 . . . . . . . . . . . . . . . . . . Ram . | . . . . . . . . . . . . . . . . . . . . . . . . . . . . Kick . | . . . . . . . . . . . . . . . . . . . . . . . . . . . . Crush . | . . . . . . . . . . . . . . . . . . . . . . . . . . . . Escape Stasis 68 | . . . . . . . . . . . . . 26 . . . . . 15 . . . 27 . . . . Rewire 137 | . . . . . . . . . . . . . 7 14 . . . . . . . . 82 . 31 3 . Trap . | . . . . . . . . . . . . . . . . . . . . . . . . . . . . Miscellaneous 924 | . 11 4 34 18 . 4 31 8 43 3 . 38 44 31 24 . 38 61 75 12 8 . 40 43 27 39 288 Route ------- -11/Scrapyard -10/Materials (discovered 2 exits: *Mat / [*Min]) -10/Mines -9/Materials (discovered 2 exits: *Mat / *Min) -9/Mines (discovered 3 exits: *Mat x2 / *Exi) -9/Exiles -8/Mines (discovered 2 exits: *Mat x2) -8/Materials (discovered 3 exits: *Fac x3) -7/Factory -7/Lower Caves -7/Lower Caves (discovered 2 exits: *Fac / *Dat) -7/Data Miner -6/Proximity Caves -6/Factory (discovered 5 exits: *Fac x3 / *Low x2) -6/Lower Caves -6/Lower Caves (discovered 2 exits: *Fac / *Zio) -6/Zion (discovered 2 exits: *Dee / [*Pro]) -6/Deep Caves -5/Proximity Caves -5/Factory (discovered 5 exits: *Fac x3 / *Upp x2) -5/Upper Caves -5/Upper Caves (discovered 2 exits: *Fac / *Zhi) -5/Zhirov -4/Proximity Caves -4/Factory (discovered 4 exits: Res / *Upp / *Ext x2) -4/Upper Caves -4/Upper Caves (discovered 2 exits: *Res / *War) -4/Warlord (discovered 1 exit: [*Pro]) History --------- Turn | Location | Event 2 | -11/Scrapyard | Upgraded with Propulsion slot (x1) 2 | -11/Scrapyard | Upgraded with Utility slot (x1) 2 | -11/Scrapyard | Upgraded with Weapon slot (x1) 33 | -11/Scrapyard | Discovered new exit (range 16) 70 | -11/Scrapyard | Entered Materials 160 | -10/Materials | Discovered new exit (range 14) 294 | -10/Materials | Discovered new exit (range 16) 305 | -10/Materials | Build established: Mutant 450 | -10/Materials | Entered Mines 452 | -10/Mines | Reached level 2 469 | -10/Mines | Upgraded with Utility slot (x1) 538 | -10/Mines | Received a Rocket Launcher from a helpful Derelict 574 | -10/Mines | Assembled infested the area 627 | -10/Mines | Discovered new exit (range 12) 657 | -10/Mines | Entered Materials 659 | -9/Materials | Reached level 3 674 | -9/Materials | Identified exit to Mines 689 | -9/Materials | Reached level 4 704 | -9/Materials | Core integrity fell below 50% 741 | -9/Materials | Upgraded with Propulsion slot (x1) 741 | -9/Materials | Upgraded with Utility slot (x1) 936 | -9/Materials | Reached level 5 1071 | -9/Materials | Discovered new exit (range 13) 1205 | -9/Materials | Entered Mines 1207 | -9/Mines | Reached level 6 1242 | -9/Mines | Upgraded with Utility slot (x1) 1289 | -9/Mines | Discovered new exit (range 8) 1294 | -9/Mines | Identified exit to Materials 1345 | -9/Mines | Discovered exit to Materials (range 8) 1386 | -9/Mines | Excavation squad dispatched 1386 | -9/Mines | A large section of the Mines collapsed 1476 | -9/Mines | Build established: Scavenger-Scout 1559 | -9/Mines | A weapon hastily lodged in a ceiling crevice suddenly fell to the ground 1650 | -9/Mines | Learned location of 1 exit from Proximity Caves 1662 | -9/Mines | Discovered new exit (range 10) 1849 | -9/Mines | Learned Materials emergency access door positions 1935 | -9/Mines | Reached level 7 1958 | -9/Mines | Upgraded with Weapon slot (x1) 1969 | -9/Mines | Upgraded with Power slot (x1) 1992 | -9/Mines | Deemed a non-threat by the Exiles lab entrance 1994 | -9/Mines | Identified exit to Exiles 2064 | -9/Mines | Entered Exiles 2064 | -9/Exiles | Accompanied by 1 ally 2090 | -9/Exiles | Met 8R-AWN 2107 | -9/Exiles | Met EX-HEX 2150 | -9/Exiles | Met EX-BIN 2162 | -9/Exiles | Met EX-DEC 2166 | -9/Exiles | Learned location of Zion (-6) 2191 | -9/Exiles | Discovered new exit (range 10) 2196 | -9/Exiles | Identified exit to Mines 2240 | -9/Exiles | Entered Mines 2325 | -8/Mines | Discovered exit to Materials (range 10) 2354 | -8/Mines | Discovered exit to Materials (range 3) 2385 | -8/Mines | Reached level 8 2680 | -8/Mines | Entered Materials 2682 | -8/Materials | Reached level 9 2706 | -8/Materials | Garrison activated, responded to threat 2759 | -8/Materials | Reached level 10 2801 | -8/Materials | Upgraded with Utility slot (x1) 2813 | -8/Materials | Destroyed 11 combat bots 2916 | -8/Materials | Discovered new exit (range 13) 3043 | -8/Materials | Upgraded with Propulsion slot (x1) 3144 | -8/Materials | Discovered new exit (range 4) 3145 | -8/Materials | Identified exit to Factory 3175 | -8/Materials | Reached level 11 3362 | -8/Materials | Discovered exit to Factory (range 4) 3394 | -8/Materials | Entered Factory 3396 | -7/Factory | Reached level 12 3441 | -7/Factory | Fabricated W-25 Informer? 3493 | -7/Factory | Reached level 13 3590 | -7/Factory | Discovered new exit (range 14) 3727 | -7/Factory | Identified exit to Lower Caves 3749 | -7/Factory | Reached level 14 3794 | -7/Factory | First assault squad dispatched 3795 | -7/Factory | Local fabrication network quarantined 3840 | -7/Factory | Build established: Scout 3946 | -7/Factory | Entered Lower Caves 3946 | -7/Lower Caves | Accompanied by 2 allies 4016 | -7/Lower Caves | Spotted B-75 Beast 4123 | -7/Lower Caves | Learned Factory emergency access door positions 4138 | -7/Lower Caves | Reached level 15 4230 | -7/Lower Caves | Build established: Scavenger-Scout 4264 | -7/Lower Caves | Learned location of 1 exit from Factory 4275 | -7/Lower Caves | Discovered new exit (range 22) 4385 | -7/Lower Caves | Attracted the attention of an 0b10 base 4484 | -7/Lower Caves | Learned 8 Factory zone layouts 4484 | -7/Lower Caves | Learned Armory emergency access door positions 4484 | -7/Lower Caves | Learned Factory garrison access intel 4526 | -7/Lower Caves | Upgraded with Utility slot (x1) 4526 | -7/Lower Caves | Upgraded with Weapon slot (x1) 4580 | -7/Lower Caves | Identified exit to Lower Caves 4581 | -7/Lower Caves | Entered another Lower Caves area 4587 | -7/Lower Caves | Discovered new exit (range 12) 4590 | -7/Lower Caves | Encountered a Warlord checkpoint 4592 | -7/Lower Caves | Identified exit to Factory 4661 | -7/Lower Caves | Learned Factory terminal intel 4693 | -7/Lower Caves | Attracted the attention of an 0b10 checkpoint 4876 | -7/Lower Caves | Discovered new exit (range 9) 4947 | -7/Lower Caves | Learned Factory security intel 4993 | -7/Lower Caves | Identified exit to Data Miner 5004 | -7/Lower Caves | Entered Data Miner 5004 | -7/Data Miner | Discovered new exit (range 6) 5006 | -7/Data Miner | Reached level 16 5014 | -7/Data Miner | Met Data Miner 5026 | -7/Data Miner | Learned location of Section 7 (-2) 5026 | -7/Data Miner | Acquired the access code to Warlord's prototype stash 5033 | -7/Data Miner | Received God Mode back door access code from Data Miner 5045 | -7/Data Miner | Identified exit to Proximity Caves 5045 | -7/Data Miner | Entered Proximity Caves 5081 | -6/Proximity Caves | Escorted by Enhanced Grunt 5095 | -6/Proximity Caves | Reached level 17 5195 | -6/Proximity Caves | Attracted the attention of an 0b10 base 5220 | -6/Proximity Caves | Learned Research trap positions 5220 | -6/Proximity Caves | Learned Research terminal intel 5317 | -6/Proximity Caves | Reached level 18 5344 | -6/Proximity Caves | Spotted B-75 Beast 5353 | -6/Proximity Caves | Destroyed B-75 Beast 5427 | -6/Proximity Caves | Learned 8 Factory zone layouts 5793 | -6/Proximity Caves | Entered Factory 5794 | -6/Factory | Identified exit to Factory 5795 | -6/Factory | Identified exit to Lower Caves 5798 | -6/Factory | Loaded intel: 19 terminal locations 5799 | -6/Factory | Loaded intel: 4 garrison access locations 5802 | -6/Factory | Upgraded with Utility slot (x1) 5820 | -6/Factory | Garrison activated, responded to threat 5841 | -6/Factory | Spotted B-75 Beast 6050 | -6/Factory | Reached level 19 6081 | -6/Factory | Fabricated Cmb. Airjet (x2) 6384 | -6/Factory | Found Prototype Processor 6384 | -6/Factory | Identified Exp. Signal Interpreter 6686 | -6/Factory | Discovered exit to Factory (range 6) 6877 | -6/Factory | Incoming investigation squad redirected 6919 | -6/Factory | Discovered exit to Factory (range 14) 7151 | -6/Factory | Reached level 20 7194 | -6/Factory | Destroyed 9 combat bots 7226 | -6/Factory | Upgraded with Weapon slot (x1) 7414 | -6/Factory | Entered Lower Caves 7533 | -6/Lower Caves | Encountered a Warlord checkpoint 7639 | -6/Lower Caves | Learned location of 1 exit from Factory 7677 | -6/Lower Caves | Attracted the attention of an 0b10 outpost 7800 | -6/Lower Caves | Attracted the attention of an 0b10 checkpoint 7948 | -6/Lower Caves | Spotted B-75 Beast 7976 | -6/Lower Caves | Destroyed B-75 Beast 8007 | -6/Lower Caves | Discovered new exit (range 21) 8200 | -6/Lower Caves | Identified exit to Lower Caves 8219 | -6/Lower Caves | Entered another Lower Caves area 8221 | -6/Lower Caves | Attracted the attention of an 0b10 checkpoint 8249 | -6/Lower Caves | Discovered exit to Factory (range 16) 8399 | -6/Lower Caves | Reached level 21 8521 | -6/Lower Caves | Encountered a Warlord checkpoint 8594 | -6/Lower Caves | Discovered new exit (range 15) 8779 | -6/Lower Caves | Identified exit to Zion 8780 | -6/Lower Caves | Entered Zion 8809 | -6/Zion | Discovered new exit (range 11) 8844 | -6/Zion | System corruption cleaned by Quarantine Array 8874 | -6/Zion | Learned location of Warlord (-4) 8926 | -6/Zion | Learned location of 2 exits from Factory 9123 | -6/Zion | Found CR-A16's Pointy Stick 9403 | -6/Zion | Discovered new exit (range 4) 9403 | -6/Zion | Saw the warning signs outside the Deep Caves entrance 9404 | -6/Zion | Identified exit to Deep Caves 9414 | -6/Zion | Entered Deep Caves 9543 | -6/Deep Caves | Z-Facility disabled 9577 | -6/Deep Caves | Attacked by Z-Imprinter 9589 | -6/Deep Caves | Destroyed Z-Imprinter 9632 | -6/Deep Caves | Found Prototype Device 9632 | -6/Deep Caves | Identified Zio. Metafield Generator 9641 | -6/Deep Caves | Found Prototype Protection 9641 | -6/Deep Caves | Identified Zio. Weapon Casing 9842 | -6/Deep Caves | Discovered new exit (range 21) 9905 | -6/Deep Caves | Exposed GOLEM chamber 9912 | -6/Deep Caves | Spotted as-16012 9934 | -6/Deep Caves | Destroyed as-16012 9943 | -6/Deep Caves | Triggered Deep Caves wall 9943 | -6/Deep Caves | Found GOLEM Unit 9945 | -6/Deep Caves | Spotted AS-29181 9982 | -6/Deep Caves | Identified exit to Proximity Caves 10094 | -6/Deep Caves | Entered Proximity Caves 10340 | -5/Proximity Caves | Attracted the attention of an 0b10 base 10348 | -5/Proximity Caves | Reached level 22 10372 | -5/Proximity Caves | Destroyed 11 combat bots 10518 | -5/Proximity Caves | Learned 4 Factory zone layouts 10617 | -5/Proximity Caves | Spotted B-75 Beast 10629 | -5/Proximity Caves | Destroyed B-75 Beast 10647 | -5/Proximity Caves | Discovered exit to Factory (range 24) 10685 | -5/Proximity Caves | Attracted the attention of an 0b10 checkpoint 10711 | -5/Proximity Caves | Learned location of 1 exit from Upper Caves 10903 | -5/Proximity Caves | Entered Factory 10904 | -5/Factory | Identified exit to Factory 11013 | -5/Factory | Fabricated Quantum Reactor? 11037 | -5/Factory | Upgraded with Propulsion slot (x1) 11045 | -5/Factory | Fabricated Cmb. Airjet (x2) 11136 | -5/Factory | Identified exit to Upper Caves 11205 | -5/Factory | Local fabrication network quarantined 11206 | -5/Factory | Incoming investigation squad redirected 11268 | -5/Factory | Fabricated Kinetic Spear (x1) 11359 | -5/Factory | Build established: Machinist-Scout 11420 | -5/Factory | Reached level 23 11503 | -5/Factory | First assault squad dispatched 11527 | -5/Factory | Destroyed 7 combat bots 11531 | -5/Factory | Incoming assault squad redirected 12063 | -5/Factory | Build established: Scavenger-Scout 12101 | -5/Factory | Destroyed 8 combat bots 12123 | -5/Factory | Incoming assault squad redirected 12133 | -5/Factory | Incoming assault squad redirected 12299 | -5/Factory | Reached level 24 12302 | -5/Factory | Upgraded with Utility slot (x1) 12712 | -5/Factory | Incoming investigation squad redirected 12714 | -5/Factory | Found Prototype Launcher 12714 | -5/Factory | Identified Scatter Rocket Array 12722 | -5/Factory | Incoming assault squad redirected 12879 | -5/Factory | High security lockdown imminent 12907 | -5/Factory | Entered Upper Caves 12908 | -5/Upper Caves | Identified exit to Upper Caves 12927 | -5/Upper Caves | Acquired the password to a Derelict Tinkerer's latest research 13284 | -5/Upper Caves | Encountered a Warlord checkpoint 13318 | -5/Upper Caves | Spotted B-75 Beast 13372 | -5/Upper Caves | Destroyed B-75 Beast 13403 | -5/Upper Caves | Entered another Upper Caves area 13439 | -5/Upper Caves | Discovered exit to Factory (range 9) 13614 | -5/Upper Caves | Spotted B-75 Beast 13614 | -5/Upper Caves | Destroyed B-75 Beast 13635 | -5/Upper Caves | Attracted the attention of an 0b10 checkpoint 13705 | -5/Upper Caves | Discovered new exit (range 9) 13708 | -5/Upper Caves | Identified exit to Zhirov 13724 | -5/Upper Caves | Entered Zhirov 13724 | -5/Zhirov | Discovered new exit (range 3) 13745 | -5/Zhirov | Learned location of Quarantine (-2) 13745 | -5/Zhirov | Learned location of Command (-1) 13757 | -5/Zhirov | Found Alien Artifact 13757 | -5/Zhirov | Identified Integrated Dissipator 13757 | -5/Zhirov | Installed Integrated Dissipator, increased core heat dissipation (+20) 13803 | -5/Zhirov | Identified exit to Proximity Caves 13804 | -5/Zhirov | Entered Proximity Caves 13806 | -4/Proximity Caves | Reached level 25 13861 | -4/Proximity Caves | Upgraded with Propulsion slot (x1) 13964 | -4/Proximity Caves | Attracted the attention of an 0b10 checkpoint 14075 | -4/Proximity Caves | Spotted B-86 Titan 14153 | -4/Proximity Caves | Spotted B-86 Titan 14194 | -4/Proximity Caves | Destroyed B-86 Titan 14210 | -4/Proximity Caves | Attracted the attention of an 0b10 outpost 14248 | -4/Proximity Caves | Destroyed 10 combat bots 14402 | -4/Proximity Caves | Snuck into a huge 0b10 base via the rear entrance 14675 | -4/Proximity Caves | Destroyed B-86 Titan 14675 | -4/Proximity Caves | Reached level 26 14956 | -4/Proximity Caves | Entered Factory 14956 | -4/Factory | Accompanied by 10 allies 14957 | -4/Factory | Identified exit to Research 14957 | -4/Factory | Identified exit to Extension 15072 | -4/Factory | Discovered new exit (range 21) 15082 | -4/Factory | Identified exit to Upper Caves 15161 | -4/Factory | Build established: Commander-Scout 15194 | -4/Factory | Found Prototype Processor 15194 | -4/Factory | Identified Exp. Targeting Computer 15200 | -4/Factory | Found Exp. Targeting Computer 15290 | -4/Factory | Fabricated Imp. Linear Gravjet (x2) 15357 | -4/Factory | Local fabrication network quarantined 15456 | -4/Factory | First assault squad dispatched 15483 | -4/Factory | Incoming assault squad redirected 15485 | -4/Factory | Incoming assault squad redirected 15497 | -4/Factory | Reached level 27 15573 | -4/Factory | Incoming investigation squad redirected 15613 | -4/Factory | Garrison activated, responded to threat 15704 | -4/Factory | Build established: Scavenger-Scout 15722 | -4/Factory | Incoming assault squad redirected 15789 | -4/Factory | Incoming investigation squad redirected 15928 | -4/Factory | Incoming investigation squad redirected 15951 | -4/Factory | Discovered exit to Extension (range 16) 15977 | -4/Factory | Incoming assault squad redirected 16009 | -4/Factory | High security lockdown imminent 16089 | -4/Factory | High security lockdown engaged 16199 | -4/Factory | Entered Upper Caves 16216 | -4/Upper Caves | Learned Research terminal intel 16253 | -4/Upper Caves | Attacked by a delusional Derelict stockpiling Unaware 16485 | -4/Upper Caves | Discovered new exit (range 18) 16540 | -4/Upper Caves | Identified exit to Upper Caves 16652 | -4/Upper Caves | Learned Research emergency access door positions 16655 | -4/Upper Caves | Learned Factory garrison access intel 16730 | -4/Upper Caves | Entered another Upper Caves area 16730 | -4/Upper Caves | Accompanied by 6 allies 16766 | -4/Upper Caves | Attracted the attention of an 0b10 checkpoint 16771 | -4/Upper Caves | Reached level 28 16816 | -4/Upper Caves | Build established: Commander-Scout 16823 | -4/Upper Caves | Discovered exit to Research (range 10) 16931 | -4/Upper Caves | Upgraded with Utility slot (x1) 17013 | -4/Upper Caves | Learned Research garrison access intel 17093 | -4/Upper Caves | Discovered new exit (range 7) 17095 | -4/Upper Caves | Identified exit to Warlord 17203 | -4/Upper Caves | Attracted the attention of an 0b10 outpost 17276 | -4/Upper Caves | Destroyed 7 combat bots 17506 | -4/Upper Caves | Build established: Scavenger-Scout 17799 | -4/Upper Caves | Entered Warlord 17799 | -4/Warlord | Accompanied by 1 ally 17895 | -4/Warlord | Visited the Vortex Lab 17916 | -4/Warlord | Warlord's base attacked by MAIN.C 17975 | -4/Warlord | Met Warlord 17979 | -4/Warlord | Opened Warlord's prototype stash 17982 | -4/Warlord | Found Prototype Reactor 17982 | -4/Warlord | Identified Vortex Chain Reactor 17996 | -4/Warlord | Found Prototype Device 17996 | -4/Warlord | Identified Exp. Cloaking Device 18002 | -4/Warlord | Found Prototype Processor 18002 | -4/Warlord | Identified Exp. Core Analyzer 18138 | -4/Warlord | Warlord forces counterattacked 18157 | -4/Warlord | Destroyed 9 combat bots 18215 | -4/Warlord | Found Prototype Device 18215 | -4/Warlord | Identified Wardrone Bay 18240 | -4/Warlord | Learned 4 Access zone layouts 18316 | -4/Warlord | Spotted Striker 18318 | -4/Warlord | Discovered new exit (range 16) 18341 | -4/Warlord | Spotted Executioner 18353 | -4/Warlord | Allies destroyed Executioner 18481 | -4/Warlord | Spotted Executioner 18505 | -4/Warlord | Build established: Mutant 18569 | -4/Warlord | Spotted Executioner 18571 | -4/Warlord | Spotted Executioner 18584 | -4/Warlord | Allies destroyed Executioner 18591 | -4/Warlord | Allies destroyed Executioner 18600 | -4/Warlord | Spotted Executioner 18600 | -4/Warlord | Spotted Executioner 18611 | -4/Warlord | Destroyed Executioner 18611 | -4/Warlord | Destroyed Executioner 18635 | -4/Warlord | Destroyed 8 combat bots 18659 | -4/Warlord | Spotted Executioner 18671 | -4/Warlord | Allies destroyed Executioner 18674 | -4/Warlord | Spotted Executioner 18700 | -4/Warlord | Destroyed 7 combat bots 18703 | -4/Warlord | Destroyed Executioner 18758 | -4/Warlord | Spotted Striker 18776 | -4/Warlord | Destroyed Striker 18871 | -4/Warlord | Spotted Executioner 18880 | -4/Warlord | Allies destroyed Executioner 18883 | -4/Warlord | Spotted Executioner 18888 | -4/Warlord | Destroyed Executioner 18894 | -4/Warlord | Spotted Executioner 18908 | -4/Warlord | Allies destroyed Executioner 18921 | -4/Warlord | Destroyed 14 combat bots 18982 | -4/Warlord | Spotted Executioner 18986 | -4/Warlord | Reached level 29 18994 | -4/Warlord | Destroyed Executioner 19023 | -4/Warlord | Destroyed 10 combat bots 19047 | -4/Warlord | Spotted Executioner 19050 | -4/Warlord | Spotted Executioner 19080 | -4/Warlord | Destroyed Executioner 19089 | -4/Warlord | Destroyed Executioner 19123 | -4/Warlord | Spotted B-90 Cyclops 19133 | -4/Warlord | Spotted Striker 19185 | -4/Warlord | Destroyed Striker 19212 | -4/Warlord | Allies destroyed B-90 Cyclops 19272 | -4/Warlord | Spotted Executioner 19286 | -4/Warlord | Spotted Executioner 19295 | -4/Warlord | Allies destroyed Executioner 19297 | -4/Warlord | Allies destroyed Executioner 19314 | -4/Warlord | Destroyed 7 combat bots 19334 | -4/Warlord | Spotted Executioner 19341 | -4/Warlord | Destroyed Executioner 19362 | -4/Warlord | Destroyed 11 combat bots 19530 | -4/Warlord | Spotted Executioner 19530 | -4/Warlord | Spotted Executioner 19542 | -4/Warlord | Spotted Executioner 19544 | -4/Warlord | Destroyed Executioner 19549 | -4/Warlord | Allies destroyed Executioner 19558 | -4/Warlord | Allies destroyed Executioner 19692 | -4/Warlord | Spotted Striker 19805 | -4/Warlord | Attacked by Warlord forces 19816 | -4/Warlord | Allies destroyed 83-182(K) 19833 | -4/Warlord | Allies destroyed Warlord 19886 | -4/Warlord | Spotted Striker 19894 | -4/Warlord | Allies destroyed Striker 20818 | -4/Warlord | Core integrity fell below 50% 20926 | -4/Warlord | Core integrity fell below 20% 20988 | -4/Warlord | Destroyed by P-80 Master with Gamma Rifle Last Messages --------------- 20806_ ANNOUNCEMENT: MAIN.C reinforcements approaching through caves, arriving soon. 20816_ ANNOUNCEMENT: Detected 4 Grunt squads, with prototype support. 20825_ System corrupted: Component data lost. 20855_ System corrupted: Matter fused (-9). 20873_ System corrupted: Asb. Focal Cannon targeting data glitched. 20876_ System corrupted: Wave Gun targeting data glitched. 20876_ System corrupted: Asb. Focal Cannon targeting data glitched. 20876_ Destroyed Phase Gun. 20897_ System corrupted: Imp. Proton Missile Launcher rejected. 20899_ Acquired Imp. Proton Missile Launcher. 20906_ ANNOUNCEMENT: MAIN.C reinforcements approaching through caves, arriving soon. 20916_ ANNOUNCEMENT: Detected 1 Demolisher squad, 2 Saboteur squads, 1 Grunt squad, with prototype support. 20917_ J/PS85O=NUHSG40B #X